bitfinex-derivatives/quotes_BTCF0:USTF0_20251215
["timestamp","ask_amount","ask_price","bid_price","bid_amount"]
[1765833104370,0.4292751,85662.0,85661.0,0.01484141]
[1765833104577,0.5500255,85659.0,85658.0,8.456e-05]
[1765833104968,0.5500255,85659.0,85658.0,0.0151823]
[1765833105169,0.4166,85654.0,85653.0,0.0001751]
[1765833105365,0.4166,85646.0,85645.0,0.08396405]
[1765833105567,0.4282783,85639.0,85637.0,0.08396405]
[1765833105768,0.4166,85639.0,85638.0,0.4231384]
[1765833107077,0.46309928,85639.0,85638.0,0.47857404]
[1765833107477,0.4166,85639.0,85638.0,0.4231384]
[1765833107678,0.46207778,85639.0,85638.0,0.47881935]
[1765833107880,0.46307778,85639.0,85638.0,0.47881935]
[1765833108179,0.4176,85639.0,85638.0,0.4231384]
[1765833109470,0.46307778,85639.0,85638.0,0.47881935]
[1765833110169,0.4176,85639.0,85638.0,0.4231384]
[1765833110677,0.46475944,85639.0,85638.0,0.47897855]
[1765833110883,0.46375944,85639.0,85638.0,0.47897855]
[1765833111179,0.46475944,85639.0,85638.0,0.47897855]
[1765833111475,0.46375944,85639.0,85638.0,0.47897855]
[1765833111669,0.46375944,85639.0,85638.0,0.4231384]
[1765833111670,0.4176,85639.0,85638.0,0.4231384]
[1765833111870,0.5500284,85638.0,85637.0,0.01478913]
[1765833112070,0.4282791,85633.0,85632.0,0.2156092]
[1765833112578,0.4166,85632.0,85631.0,0.05494797]
[1765833112764,0.5500294,85631.0,85630.0,0.2041051]
[1765833112966,0.59644639,85631.0,85630.0,0.2041051]
[1765833113164,0.58476699,85631.0,85630.0,0.21938158]
[1765833113379,0.58476699,85631.0,85630.0,0.42691158]
[1765833114173,0.58576699,85631.0,85630.0,0.42691158]
[1765833114379,0.53935,85631.0,85630.0,0.42691158]
[1765833115781,0.58483464,85631.0,85630.0,0.42691158]
[1765833116076,0.53935,85631.0,85630.0,0.42691158]
[1765833116682,0.53835,85631.0,85630.0,0.42691158]
[1765833116876,0.58562833,85631.0,85630.0,0.42691158]
[1765833117985,0.4176,85631.0,85630.0,0.42691158]
[1765833118276,0.46349118,85631.0,85630.0,0.42691158]
[1765833118475,0.4176,85631.0,85630.0,0.42691158]
[1765833118783,0.58524118,85631.0,85630.0,0.42691158]
[1765833119078,0.53935,85631.0,85630.0,0.42691158]
[1765833119268,0.58473696,85631.0,85630.0,0.42691158]
[1765833119474,0.58473696,85631.0,85630.0,0.42791158]
[1765833120175,0.53935,85631.0,85630.0,0.42791158]
[1765833120477,0.58420782,85631.0,85630.0,0.42791158]
[1765833120868,0.58520782,85631.0,85630.0,0.42691158]
[1765833121068,0.53935,85631.0,85630.0,0.43959108]
[1765833121284,0.58627114,85631.0,85630.0,0.42791158]
[1765833121482,0.5853557,85631.0,85630.0,0.01645158]
[1765833121878,0.5853557,85631.0,85630.0,0.02813108]
[1765833122083,0.53843456,85631.0,85630.0,0.02813108]
[1765833122284,0.58536279,85631.0,85630.0,0.08303795]
[1765833122476,0.53843456,85631.0,85630.0,0.02813108]
[1765833122783,0.53843456,85631.0,85630.0,0.22537108]
[1765833122984,0.58550216,85631.0,85630.0,0.22537108]
[1765833123885,0.58550216,85631.0,85630.0,0.21369158]
[1765833124082,0.58592876,85631.0,85630.0,0.01545158]
[1765833124576,0.53943456,85631.0,85630.0,0.01545158]
[1765833124778,0.58592876,85631.0,85630.0,0.01545158]
[1765833125287,0.53943456,85631.0,85630.0,0.01545158]
[1765833125487,0.58544663,85631.0,85630.0,0.01545158]
[1765833126273,0.58544663,85631.0,85629.0,0.05542351]
[1765833126274,0.4166995,85630.0,85629.0,0.05542351]
[1765833126683,0.4166998,85628.0,85627.0,0.01644323]
[1765833126883,0.40502,85627.0,85626.0,0.20992]
[1765833127084,0.40502,85627.0,85626.0,0.19824]
[1765833127279,0.40502,85619.0,85618.0,0.42589217]
[1765833127480,0.45091536,85619.0,85618.0,0.42589217]
[1765833128090,0.45091536,85619.0,85618.0,0.4423709]
[1765833128288,0.45074383,85619.0,85618.0,0.49736811]
[1765833128791,0.45074383,85619.0,85618.0,0.49936811]
[1765833129187,0.04572383,85619.0,85618.0,0.49936811]
[1765833129381,0.0011751,85627.0,85626.0,0.50576]
[1765833129585,0.52454,85656.0,85655.0,0.4117]
[1765833129785,0.52454,85656.0,85655.0,0.47905658]
[1765833130391,0.52454,85656.0,85655.0,0.4117]
[1765833130590,0.56988283,85656.0,85655.0,0.25328868]
[1765833130786,0.52454,85648.0,85647.0,0.4235522]
[1765833130987,0.56987282,85648.0,85647.0,0.47858873]
[1765833131187,0.56987282,85648.0,85647.0,0.4118751]
[1765833131188,0.536217,85648.0,85647.0,0.4118751]
[1765833131485,0.56987282,85648.0,85647.0,0.47858883]
[1765833131686,0.36435282,85648.0,85647.0,0.47858883]
[1765833132085,0.04533282,85648.0,85647.0,0.47858883]
[1765833132391,0.131196,85656.0,85655.0,0.4672082]
[1765833132392,0.78281161,85656.0,85655.0,0.4672082]
[1765833132978,0.78281161,85656.0,85655.0,0.0555082]
[1765833133289,0.52454,85648.0,85647.0,0.4245523]
[1765833133483,0.57141754,85648.0,85647.0,0.480759]
[1765833134086,0.57141754,85648.0,85647.0,0.479759]
[1765833135495,0.57019942,85648.0,85647.0,0.47799647]
[1765833135989,0.57119942,85648.0,85647.0,0.47799647]
[1765833136590,0.52554,85648.0,85647.0,0.4235523]
[1765833136803,0.57179149,85648.0,85647.0,0.47851325]
[1765833137391,0.52554,85648.0,85647.0,0.4235523]
[1765833137599,0.57179149,85648.0,85647.0,0.47851325]
[1765833137897,0.52554,85648.0,85647.0,0.4235523]
[1765833138096,0.52454,85648.0,85647.0,0.4235523]
[1765833138293,0.52554,85648.0,85647.0,0.4235523]
[1765833139100,0.57221013,85648.0,85647.0,0.47892979]
[1765833140295,0.52554,85648.0,85647.0,0.48631004]
[1765833140497,0.57181994,85648.0,85647.0,0.54087709]
[1765833140695,0.52554,85648.0,85647.0,0.48631004]
[1765833140898,0.57181994,85648.0,85647.0,0.54087709]
[1765833141397,0.57181994,85648.0,85647.0,0.47811935]
[1765833141598,0.001,85648.0,85647.0,0.4235523]
[1765833141896,0.5362161,85656.0,85655.0,0.4233761]
[1765833142100,0.52454,85656.0,85655.0,0.4233761]
[1765833142396,0.5247151,85664.0,85663.0,0.19824]
[1765833142588,0.53639,85664.0,85663.0,0.19824]
[1765833142786,0.2111754,85660.0,85659.0,0.2099155]
[1765833142992,0.40502,85650.0,85649.0,0.48613464]
[1765833143201,0.40502,85650.0,85649.0,0.4233769]
[1765833145397,0.4166968,85650.0,85649.0,0.4233769]
[1765833145587,0.011677,85649.0,85647.0,0.0001751]
[1765833145791,0.40502,85648.0,85647.0,0.0001751]
[1765833145994,0.40502,85648.0,85647.0,0.1984151]
[1765833147395,0.40502,85648.0,85647.0,0.0001751]
[1765833148299,0.0116779,85642.0,85641.0,0.06275774]
[1765833148603,0.40502,85641.0,85640.0,0.06275774]
[1765833150207,0.4166981,85640.0,85639.0,0.0116783]
[1765833150808,0.40502,85640.0,85639.0,0.4047883]
[1765833151797,0.40502,85640.0,85639.0,0.0116783]
[1765833151996,0.40602,85640.0,85639.0,0.2049683]
[1765833156110,0.40502,85640.0,85639.0,0.2049683]
[1765833156302,0.40602,85640.0,85639.0,0.2049683]
[1765833156610,0.40602,85640.0,85639.0,0.3993683]
[1765833156810,0.2005,85640.0,85639.0,0.3993683]
[1765833157306,0.39876,85640.0,85639.0,0.3993683]
[1765833158100,0.39776,85640.0,85639.0,0.3993683]
[1765833159010,0.39876,85640.0,85639.0,0.3993683]
[1765833161107,0.39776,85640.0,85639.0,0.3993683]
[1765833161312,0.39876,85640.0,85639.0,0.3993683]
[1765833162705,0.39776,85640.0,85639.0,0.3993683]
[1765833162914,0.39876,85640.0,85639.0,0.3993683]
[1765833163609,0.001,85640.0,85639.0,0.3993683]
[1765833163815,0.19057,85656.0,85655.0,0.38439]
[1765833164014,0.31009,85659.0,85658.0,0.3960657]
[1765833164708,0.53345958,85659.0,85658.0,0.3960657]
[1765833164911,0.50835,85659.0,85658.0,0.3960657]
[1765833165310,0.50935,85659.0,85658.0,0.3960657]
[1765833165721,0.5200255,85659.0,85658.0,0.3960657]
[1765833166016,0.5210255,85659.0,85658.0,0.3960657]
[1765833166314,0.50935,85659.0,85658.0,0.3960657]
[1765833166705,0.5210255,85659.0,85658.0,0.3960657]
[1765833167116,0.50935,85659.0,85658.0,0.3960657]
[1765833168115,0.50835,85659.0,85658.0,0.3960657]
[1765833169822,0.5200255,85659.0,85658.0,0.3960657]
[1765833172704,0.50835,85659.0,85658.0,0.3960657]
[1765833173708,0.5200255,85659.0,85658.0,0.3960657]
[1765833176316,0.5200255,85659.0,85658.0,0.45897737]
[1765833176513,0.1907451,85664.0,85663.0,0.396065]
[1765833176713,0.3890051,85664.0,85663.0,0.396065]
[1765833177818,0.40068,85664.0,85663.0,0.396065]
[1765833180626,0.40068,85664.0,85663.0,0.38439]
[1765833181720,0.3890051,85664.0,85663.0,0.38439]
[1765833181926,0.3900051,85664.0,85663.0,0.38439]
[1765833183322,0.3890051,85664.0,85663.0,0.38439]
[1765833183523,0.0011751,85664.0,85663.0,0.44730167]
[1765833183723,0.51592,85680.0,85679.0,0.38069]
[1765833183929,0.51597,85685.0,85684.0,0.3923621]
[1765833184523,0.527642,85685.0,85684.0,0.38069]
[1765833184827,0.527642,85685.0,85684.0,0.39682565]
[1765833185416,0.51597,85685.0,85684.0,0.39682565]
[1765833186222,0.0001751,85693.0,85692.0,0.38069]
[1765833186427,0.0001751,85693.0,85692.0,0.4693311]
[1765833186621,0.20456921,85702.0,85697.0,0.3923604]
[1765833187015,0.0116696,85703.0,85697.0,0.3923604]
[1765833187926,0.0116696,85703.0,85697.0,0.3933604]
[1765833188131,0.41275399,85698.0,85697.0,0.2064704]
[1765833188430,0.40108379,85698.0,85697.0,0.3943604]
[1765833189329,0.40108379,85698.0,85697.0,0.43615045]
[1765833189930,0.40108379,85698.0,85697.0,0.43515045]
[1765833190131,0.40108379,85698.0,85697.0,0.43415045]
[1765833190333,0.40108379,85698.0,85697.0,0.3923604]
[1765833190930,0.20373379,85698.0,85695.0,0.04179005]
[1765833191132,0.20373379,85698.0,85692.0,0.04179005]
[1765833191133,0.39875,85693.0,85692.0,0.04179005]
[1765833191320,0.39875,85690.0,85689.0,0.23559005]
[1765833191521,0.39875,85690.0,85689.0,0.42248005]
[1765833191830,0.5276417,85687.0,85686.0,0.04179005]
[1765833192029,0.5276417,85687.0,85686.0,0.42248005]
[1765833192535,0.5276417,85687.0,85686.0,0.38069]
[1765833193636,0.5286417,85687.0,85686.0,0.38069]
[1765833193827,0.39875,85686.0,85685.0,0.04179005]
[1765833194026,0.39875,85686.0,85685.0,0.23559005]
[1765833194938,0.39875,85686.0,85685.0,0.04179005]
[1765833195329,0.39875,85686.0,85684.0,0.01742714]
[1765833195330,0.410422,85685.0,85684.0,0.0591939]
[1765833195930,0.410422,85685.0,85684.0,0.2529939]
[1765833196132,0.39875,85685.0,85684.0,0.2529939]
[1765833196436,0.39875,85685.0,85684.0,0.4398839]
[1765833197235,0.39875,85685.0,85684.0,0.01742714]
[1765833197439,0.39875,85682.0,85681.0,0.04176676]
[1765833197832,0.51597,85680.0,85679.0,0.04176676]
[1765833198032,0.4104228,85679.0,85678.0,0.04176676]
[1765833198233,0.39875,85678.0,85677.0,0.04176676]
[1765833198430,0.11722,85680.0,85675.0,0.04176676]
[1765833198431,0.4104231,85677.0,85675.0,0.04176676]
[1765833199236,0.4104231,85677.0,85676.0,0.04194186]
[1765833199634,0.4124231,85677.0,85676.0,0.04194186]
[1765833199829,0.410424,85670.0,85669.0,0.06285658]
[1765833200540,0.5276446,85666.0,85665.0,0.00012139]
[1765833201743,0.51597,85666.0,85665.0,0.01725525]
[1765833201943,0.51597,85666.0,85665.0,0.21105525]
[1765833206146,0.5276446,85666.0,85665.0,0.22272995]
[1765833206445,0.51597,85666.0,85665.0,0.22272995]
[1765833207249,0.51597,85666.0,85665.0,0.02892995]
[1765833207546,0.51597,85666.0,85665.0,0.40961995]
[1765833207746,0.51697,85666.0,85665.0,0.40961995]
[1765833208345,0.51697,85666.0,85665.0,0.4934495]
[1765833208745,0.51597,85666.0,85665.0,0.1127595]
[1765833208940,0.51697,85666.0,85665.0,0.1010848]
[1765833209130,0.51697,85666.0,85665.0,0.01725525]
[1765833210639,0.51597,85666.0,85665.0,0.01725525]
[1765833210840,0.51697,85666.0,85665.0,0.01725525]
[1765833211145,0.51597,85666.0,85665.0,0.01725525]
[1765833211347,0.51697,85666.0,85665.0,0.01725525]
[1765833211746,0.51597,85666.0,85665.0,0.01725525]
[1765833211938,0.51697,85666.0,85665.0,0.01725525]
[1765833212439,0.51697,85666.0,85665.0,0.1010848]
[1765833213139,0.51697,85666.0,85665.0,0.01725525]
[1765833213339,0.51697,85666.0,85665.0,0.1010848]
[1765833213551,0.51697,85666.0,85665.0,0.01725525]
[1765833214444,0.51597,85666.0,85665.0,0.01725525]
[1765833214645,0.51697,85666.0,85665.0,0.01725525]
[1765833215041,0.51597,85666.0,85665.0,0.01725525]
[1765833215237,0.51697,85666.0,85665.0,0.01725525]
[1765833215443,0.51697,85666.0,85665.0,0.02892995]
[1765833215636,0.51597,85666.0,85665.0,0.02892995]
[1765833215846,0.51697,85666.0,85665.0,0.02892995]
[1765833217152,0.51597,85666.0,85665.0,0.02892995]
[1765833217450,0.51697,85666.0,85665.0,0.01725525]
[1765833217648,0.51697,85666.0,85657.0,0.0001751]
[1765833217649,0.3865857,85658.0,85657.0,0.0001751]
[1765833218354,0.3865857,85658.0,85657.0,0.01771215]
[1765833218545,0.38670518,85658.0,85657.0,0.01771215]
[1765833219045,0.38670518,85658.0,85657.0,0.40610215]
[1765833219448,0.37502948,85658.0,85657.0,0.40610215]
[1765833219655,0.37502948,85658.0,85657.0,0.01771215]
[1765833220049,0.37702948,85658.0,85657.0,0.01771215]
[1765833220548,0.37502948,85658.0,85657.0,0.01771215]
[1765833220757,0.37602948,85658.0,85657.0,0.01771215]
[1765833221256,0.37702948,85658.0,85657.0,0.01771215]
[1765833225159,0.37502948,85658.0,85657.0,0.01771215]
[1765833225358,0.37602948,85658.0,85657.0,0.01771215]
[1765833226754,0.37602948,85658.0,85657.0,0.21702215]
[1765833227061,0.37602948,85658.0,85657.0,0.40610215]
[1765833227062,0.00111948,85658.0,85657.0,0.40610215]
[1765833227259,0.00011948,85658.0,85657.0,0.40610215]
[1765833227654,0.00111948,85658.0,85657.0,0.40610215]
[1765833228261,0.19253948,85658.0,85657.0,0.40610215]
[1765833228765,0.00011948,85658.0,85657.0,0.40610215]
[1765833228960,0.19253948,85658.0,85657.0,0.40610215]
[1765833229456,0.00011948,85658.0,85657.0,0.40610215]
[1765833229658,0.0001751,85666.0,85665.0,0.4000647]
[1765833229963,0.69697939,85680.0,85679.0,0.4000628]
[1765833230152,0.53881718,85680.0,85679.0,0.4000628]
[1765833230662,0.49239,85680.0,85679.0,0.4000628]
[1765833231049,0.49539,85680.0,85679.0,0.4000628]
[1765833232758,0.5070627,85680.0,85679.0,0.4000628]
[1765833233865,0.49539,85680.0,85679.0,0.4000628]
[1765833234256,0.3865832,85676.0,85675.0,0.06289479]
[1765833234451,0.12048,85680.0,85657.0,0.12228164]
[1765833234452,0.3865842,85669.0,85668.0,0.06289479]
[1765833234654,0.49239,85668.0,85667.0,0.46295919]
[1765833234859,0.49239,85668.0,85667.0,0.4000644]
[1765833235259,0.49239,85668.0,85667.0,0.19931]
[1765833235466,0.49239,85668.0,85667.0,0.2109845]
[1765833235765,0.49239,85668.0,85658.0,0.28313955]
[1765833235766,0.37491,85659.0,85658.0,0.28313955]
[1765833235965,0.37491,85659.0,85658.0,0.47221955]
[1765833236558,0.3865857,85658.0,85657.0,0.01771215]
[1765833237074,0.37491,85658.0,85657.0,0.40610215]
[1765833237658,0.37491,85658.0,85657.0,0.21702215]
[1765833238759,0.37591,85658.0,85657.0,0.21702215]
[1765833240167,0.37691,85658.0,85657.0,0.21702215]
[1765833241268,0.37691,85658.0,85657.0,0.40610215]
[1765833241468,0.37691,85658.0,85657.0,0.21702215]
[1765833241861,0.37591,85658.0,85657.0,0.21702215]
[1765833242171,0.37591,85658.0,85657.0,0.01771215]
[1765833243767,0.37491,85658.0,85657.0,0.01771215]
[1765833243968,0.37591,85658.0,85657.0,0.01771215]
[1765833244364,0.37491,85658.0,85657.0,0.01771215]
[1765833244663,0.37591,85658.0,85657.0,0.01771215]
[1765833244967,0.37491,85658.0,85657.0,0.01771215]
[1765833245168,0.37691,85658.0,85657.0,0.01771215]
[1765833247067,0.37691,85658.0,85657.0,0.0064595]
[1765833247265,0.3786,85654.0,85653.0,0.08382955]
[1765833247460,0.3902762,85654.0,85653.0,0.08382955]
[1765833247660,0.3902762,85654.0,85653.0,0.10079743]
[1765833247861,0.3902762,85654.0,85653.0,0.01696788]
[1765833248061,0.49548,85650.0,85649.0,0.3998068]
[1765833249270,0.001,85654.0,85653.0,0.3998064]
[1765833250170,0.49608,85662.0,85661.0,0.3998053]
[1765833251372,0.49708,85662.0,85661.0,0.3998053]
[1765833252476,0.49708,85662.0,85661.0,0.19145]
[1765833252671,0.49708,85662.0,85661.0,0.38813]
[1765833253071,0.49608,85662.0,85661.0,0.38813]
[1765833253274,0.49708,85662.0,85661.0,0.38813]
[1765833253470,0.3786,85661.0,85660.0,0.3998053]
[1765833254069,0.3786,85661.0,85660.0,0.48372195]
[1765833254970,0.3796,85661.0,85660.0,0.48372195]
[1765833256171,0.3796,85661.0,85660.0,0.3998053]
[1765833256874,0.3786,85661.0,85660.0,0.3998053]
[1765833257179,0.3796,85661.0,85660.0,0.38813]
[1765833258283,0.3786,85652.0,85651.0,0.3998066]
[1765833260981,0.3786,85652.0,85651.0,0.50437609]
[1765833262782,0.3902765,85652.0,85651.0,0.50437609]
[1765833262988,0.5071568,85650.0,85649.0,0.01562632]
[1765833263179,0.3786,85646.0,85640.0,0.011678]
[1765833263375,0.3786,85646.0,85639.0,0.0116783]
[1765833263777,0.3786,85646.0,85637.0,0.0116785]
[1765833264177,0.3786,85646.0,85645.0,0.01624834]
[1765833265182,0.3786,85646.0,85645.0,0.0001751]
[1765833265589,0.3816,85646.0,85645.0,0.0001751]
[1765833265791,0.49548,85644.0,85643.0,0.01579598]
[1765833265992,0.3786,85631.0,85630.0,0.0116795]
[1765833266285,0.3786,85631.0,85630.0,0.41602057]
[1765833268190,0.3902794,85631.0,85630.0,0.01621107]
[1765833268491,0.3902802,85625.0,85624.0,0.14696783]
[1765833269190,0.3902802,85625.0,85624.0,0.0001389]
[1765833269384,0.3902802,85625.0,85624.0,0.01619298]
[1765833269585,0.3902802,85625.0,85624.0,0.0001389]
[1765833269784,0.3912802,85625.0,85624.0,0.0001389]
[1765833270186,0.3796,85625.0,85624.0,0.0001389]
[1765833270388,0.3796,85625.0,85624.0,0.3882689]
[1765833271780,0.3796,85625.0,85624.0,0.40418943]
[1765833274898,0.3786,85625.0,85624.0,0.40418943]
[1765833283906,0.3902802,85625.0,85624.0,0.38906943]
[1765833284303,0.3912802,85625.0,85624.0,0.38906943]
[1765833284796,0.3902802,85625.0,85624.0,0.38906943]
[1765833285501,0.3786,85625.0,85624.0,0.38906943]
[1765833286506,0.3796,85625.0,85624.0,0.38906943]
[1765833286893,0.3786,85625.0,85624.0,0.38906943]
[1765833287097,0.3796,85625.0,85624.0,0.38906943]
[1765833287812,0.001,85625.0,85624.0,0.38906943]
[1765833287998,0.3139895,85650.0,85638.0,0.3754584]
[1765833287999,0.10924,85650.0,85638.0,0.3754584]
[1765833288309,0.3704,85655.0,85654.0,0.3754562]
[1765833288612,0.47964,85660.0,85659.0,0.3754555]
[1765833288911,0.3704,85648.0,85647.0,0.3754572]
[1765833289299,0.4798151,85656.0,85655.0,0.3754561]
[1765833296311,0.0001751,85656.0,85655.0,0.3754561]
[1765833296505,0.0001751,85656.0,85655.0,0.3774561]
[1765833296911,0.0001751,85656.0,85655.0,0.3764561]
[1765833297308,0.1943851,85656.0,85655.0,0.3764561]
[1765833297516,0.4798151,85656.0,85655.0,0.36478]
[1765833297708,0.4798151,85656.0,85655.0,0.18522]
[1765833298201,0.4798151,85656.0,85655.0,0.003]
[1765833298514,0.4798151,85656.0,85655.0,0.18522]
[1765833299113,0.4798151,85656.0,85655.0,0.18422]
[1765833299617,0.4798151,85656.0,85655.0,0.18322]
[1765833299922,0.4808151,85656.0,85655.0,0.18322]
[1765833300218,0.4808151,85656.0,85655.0,0.36378]
[1765833300603,0.3820769,85649.0,85648.0,0.05360566]
[1765833300808,0.3820777,85643.0,85642.0,0.77496866]
[1765833301019,0.3704,85642.0,85641.0,0.0116779]
[1765833301314,0.3704,85640.0,85638.0,0.04192866]
[1765833301520,0.3704,85640.0,85637.0,0.04192866]
[1765833302217,0.3724602,85625.0,85624.0,0.01605943]
[1765833302616,0.36078,85625.0,85624.0,0.21472973]
[1765833303120,0.35878,85625.0,85624.0,0.21472973]
[1765833303604,0.35978,85625.0,85624.0,0.21472973]
[1765833303808,0.35978,85625.0,85624.0,0.39264943]
[1765833305104,0.001,85625.0,85624.0,0.46693943]
[1765833305710,0.003,85625.0,85624.0,0.46693943]
[1765833306217,0.0001751,85633.0,85632.0,0.37659]
[1765833307023,0.0001751,85633.0,85632.0,0.3882692]
[1765833308710,0.0001751,85633.0,85632.0,0.3892692]
[1765833310220,0.0001751,85633.0,85632.0,0.3902692]
[1765833310421,0.47385,85659.0,85658.0,0.37659]
[1765833310613,0.4988321,85659.0,85658.0,0.37659]
[1765833311122,0.3724591,85633.0,85632.0,0.002]
[1765833311714,0.35878,85625.0,85624.0,0.39282453]
[1765833312917,0.35878,85625.0,85624.0,0.01623453]
[1765833313716,0.35878,85625.0,85624.0,0.00471233]
[1765833313912,0.35878,85625.0,85624.0,0.0001751]
[1765833314822,0.372461,85619.0,85618.0,0.00233597]
[1765833315026,0.372461,85619.0,85618.0,0.01902932]
[1765833315818,0.372461,85619.0,85618.0,0.00233597]
[1765833317814,0.373461,85619.0,85618.0,0.00233597]
[1765833319327,0.372461,85619.0,85618.0,0.00233597]
[1765833319516,0.18193,85619.0,85618.0,0.37892597]
[1765833319718,0.36278,85619.0,85618.0,0.37892597]
[1765833320626,0.002,85619.0,85618.0,0.37892597]
[1765833320828,9.926e-05,85625.0,85624.0,0.47791]
[1765833321025,9.926e-05,85625.0,85624.0,0.4895903]
[1765833321723,0.0001751,85641.0,85637.0,0.3882685]
[1765833321724,0.47385,85638.0,85637.0,0.3882685]
[1765833322618,0.0001751,85641.0,85640.0,0.3882681]
[1765833322619,0.1801051,85641.0,85640.0,0.3882681]
[1765833322918,0.36099665,85641.0,85640.0,0.3882681]
[1765833323227,0.36078,85638.0,85637.0,0.3882685]
[1765833324518,0.36078,85638.0,85637.0,0.37659]
[1765833324723,0.36078,85638.0,85637.0,0.18699]
[1765833325214,0.1247481,85640.0,85630.0,0.07454745]
[1765833325215,0.3724594,85631.0,85630.0,0.3882694]
[1765833325626,0.36078,85631.0,85630.0,0.3882694]
[1765833325825,0.36078,85631.0,85630.0,0.45116604]
[1765833326226,0.3724594,85631.0,85630.0,0.45116604]
[1765833326420,0.36078,85631.0,85630.0,0.45116604]
[1765833326615,0.3724594,85631.0,85630.0,0.45116604]
[1765833326816,0.36078,85631.0,85630.0,0.45116604]
[1765833327227,0.36078,85631.0,85630.0,0.3882694]
[1765833327832,0.36078,85631.0,85630.0,0.43950948]
[1765833328030,0.36078,85631.0,85630.0,0.45118898]
[1765833328221,0.36078,85631.0,85630.0,0.3882695]
[1765833328418,0.36078,85631.0,85630.0,0.37659]
[1765833328821,0.36078,85631.0,85630.0,0.4395209]
[1765833329019,0.36078,85631.0,85630.0,0.0629309]
[1765833329222,0.3724595,85630.0,85629.0,0.0001751]
[1765833334526,0.0116795,85630.0,85629.0,0.3797651]
[1765833334730,0.0116795,85630.0,85629.0,0.3797751]
[1765833334731,0.37024,85630.0,85629.0,0.3797751]
[1765833334935,0.37024,85630.0,85629.0,0.0001751]
[1765833335635,0.37024,85630.0,85629.0,0.3797751]
[1765833335940,0.6728581,85640.0,85639.0,0.3796]
[1765833336137,0.66118,85640.0,85639.0,0.3796]
[1765833337742,0.48331,85640.0,85639.0,0.3796]
[1765833338237,0.3819188,85635.0,85634.0,0.3796]
[1765833338540,0.4940292,85632.0,85631.0,0.45422428]
[1765833338739,0.4940292,85632.0,85631.0,0.24994488]
[1765833339045,0.37024,85630.0,85629.0,0.3797751]
[1765833339335,0.11307,85640.0,85639.0,0.3796]
[1765833339336,0.4949881,85640.0,85639.0,0.3796]
[1765833341849,0.00021665,85641.0,85640.0,0.4910581]
[1765833342037,0.3819151,85662.0,85661.0,0.3796]
[1765833342543,0.4940251,85662.0,85661.0,0.187]
[1765833342741,0.37024,85656.0,85655.0,0.45420742]
[1765833342943,0.1895445,85667.0,85666.0,0.1986746]
[1765833343243,0.11211,85672.0,85671.0,0.3796]
[1765833343244,0.37024,85672.0,85671.0,0.3796]
[1765833343562,0.0116737,85673.0,85672.0,0.3912738]
[1765833343743,0.0116737,85673.0,85672.0,0.3796]
[1765833343744,0.3819137,85673.0,85672.0,0.3796]
[1765833343933,0.3819136,85673.0,85672.0,0.3796]
[1765833344241,0.3819136,85673.0,85672.0,0.39669161]
[1765833345549,0.3819136,85673.0,85672.0,0.40836541]
[1765833345739,0.37024,85673.0,85672.0,0.40836541]
[1765833348752,0.37024,85673.0,85672.0,0.39669161]
[1765833353649,0.0001751,85675.0,85674.0,0.3796]
[1765833353953,0.0116716,85688.0,85687.0,0.3912717]
[1765833354352,0.3819112,85691.0,85690.0,0.391271]
[1765833356449,0.3819112,85691.0,85690.0,0.3796]
[1765833358354,0.3819123,85683.0,85682.0,0.3797751]
[1765833358554,0.3819123,85683.0,85682.0,0.0001751]
[1765833361551,0.3819123,85683.0,85672.0,0.0174154]
[1765833361552,0.3819136,85673.0,85672.0,0.0174154]
[1765833361859,0.3819136,85673.0,85668.0,0.0116742]
[1765833361860,0.3819142,85669.0,85668.0,0.3912742]
[1765833362564,0.37024,85669.0,85668.0,0.3912742]
[1765833364052,0.3816851,85677.0,85676.0,0.36191]
[1765833364955,0.3933582,85677.0,85676.0,0.36191]
[1765833368577,0.3931839,85671.0,85670.0,0.373584]
[1765833368779,0.38151,85671.0,85670.0,0.373584]
[1765833369163,0.0001751,85677.0,85676.0,0.36191]
[1765833369364,0.00233379,85698.0,85697.0,0.3735804]
[1765833369568,0.38151,85716.0,85715.0,0.3735779]
[1765833369770,0.40653013,85716.0,85715.0,0.3735779]
[1765833370283,0.02502013,85716.0,85715.0,0.3735779]
[1765833370574,0.3816851,85724.0,85723.0,0.3735768]
[1765833370773,0.40671634,85724.0,85723.0,0.3735768]
[1765833371976,0.40671634,85724.0,85723.0,0.36191]
[1765833372480,0.40671634,85724.0,85723.0,0.37971269]
[1765833373280,0.3816851,85724.0,85723.0,0.37971269]
[1765833374281,0.3816851,85724.0,85723.0,0.01780269]
[1765833374465,0.38151,85710.0,85709.0,0.42471885]
[1765833374672,0.38151,85710.0,85709.0,0.17765]
[1765833374872,0.3931787,85709.0,85707.0,0.06298395]
[1765833375177,0.38151,85708.0,85707.0,0.0001751]
[1765833375380,0.38151,85708.0,85707.0,0.01770233]
[1765833375575,0.38151,85708.0,85688.0,0.0116715]
[1765833375576,0.38151,85697.0,85696.0,0.06280885]
[1765833375880,0.38151,85693.0,85692.0,0.17765]
[1765833376087,0.38151,85693.0,85692.0,0.25800677]
[1765833376476,0.38151,85693.0,85692.0,0.37952249]
[1765833379578,0.3931809,85693.0,85692.0,0.37952249]
[1765833380087,0.38151,85693.0,85692.0,0.37952249]
[1765833386390,0.20181479,85701.0,85700.0,0.36191]
[1765833386690,0.01184479,85701.0,85700.0,0.36191]
[1765833387486,0.3931801,85699.0,85698.0,0.06268595]
[1765833387677,0.38151,85695.0,85694.0,0.06268595]
[1765833387882,0.3931808,85694.0,85693.0,0.24033595]
[1765833388082,0.3931808,85694.0,85693.0,0.42459595]
[1765833390185,0.3931808,85694.0,85693.0,0.42461223]
[1765833391280,0.3931808,85694.0,85693.0,0.36191]
[1765833393384,0.3931808,85694.0,85693.0,0.3735809]
[1765833394393,0.3931808,85694.0,85693.0,0.36191]
[1765833394783,0.35278,85693.0,85692.0,0.01761249]
[1765833394984,0.35278,85693.0,85692.0,0.17957]
[1765833395186,0.35278,85693.0,85692.0,0.35701]
[1765833396290,0.35278,85693.0,85692.0,0.17957]
[1765833396499,0.35278,85693.0,85692.0,0.1976223]
[1765833396795,0.35278,85693.0,85692.0,0.3750623]
[1765833397196,0.35278,85693.0,85692.0,0.45880743]
[1765833397394,0.35278,85693.0,85692.0,0.3750623]
[1765833398995,0.35278,85693.0,85692.0,0.0180523]
[1765833399198,0.3644511,85692.0,85691.0,0.08385535]
[1765833399885,0.3644511,85692.0,85691.0,0.28126266]
[1765833400396,0.3644511,85692.0,85691.0,0.45870266]
[1765833400599,0.3644511,85692.0,85691.0,0.37484731]
[1765833401494,0.3644511,85692.0,85691.0,0.19740731]